bitfinex/quotes_BTCUSD_20220207
["timestamp","ask_amount","ask_price","bid_price","bid_amount"]
[1644211208214,0.51949141,42854.0,42853.0,0.14923753]
[1644211208415,0.54049141,42854.0,42853.0,0.14923753]
[1644211209419,0.54049141,42854.0,42853.0,0.1]
[1644211209615,0.54049141,42854.0,42853.0,0.05]
[1644211209616,0.51949141,42854.0,42853.0,0.05]
[1644211209816,0.51949141,42854.0,42853.0,0.1]
[1644211210215,0.51949141,42854.0,42853.0,0.05]
[1644211210416,0.54149141,42854.0,42853.0,0.05]
[1644211212164,0.51949141,42854.0,42853.0,0.05]
[1644211212363,0.53649141,42854.0,42853.0,0.05]
[1644211213663,0.51949141,42854.0,42853.0,0.05]
[1644211214363,0.53649141,42854.0,42853.0,0.05]
[1644211215613,0.51949141,42854.0,42853.0,0.05]
[1644211216214,0.84593341,42854.0,42853.0,0.05]
[1644211216416,0.86293341,42854.0,42853.0,0.05]
[1644211217515,0.84593341,42854.0,42853.0,0.05]
[1644211218316,0.86193341,42854.0,42853.0,0.05]
[1644211218721,0.8,42853.0,42850.0,0.04170509]
[1644211218921,0.326442,42852.0,42850.0,0.04170509]
[1644211219389,0.66825324,42852.0,42850.0,0.04170509]
[1644211219787,1.01251229,42852.0,42850.0,0.04170509]
[1644211220286,0.77070105,42852.0,42850.0,0.04170509]
[1644211220485,0.78070105,42852.0,42850.0,0.04170509]
[1644211220887,0.77070105,42852.0,42850.0,0.04170509]
[1644211221089,0.19924788,42851.0,42850.0,0.04161731]
[1644211221290,0.52568988,42851.0,42850.0,0.04161731]
[1644211221685,0.62568988,42851.0,42850.0,0.04161731]
[1644211221886,0.426442,42851.0,42850.0,0.04161731]
[1644211222488,0.437442,42851.0,42850.0,0.04161731]
[1644211222924,0.337442,42851.0,42850.0,0.04161731]
[1644211223522,0.326442,42851.0,42850.0,0.04161731]
[1644211224324,0.338192,42851.0,42850.0,0.04161731]
[1644211226226,0.326192,42851.0,42850.0,0.04161731]
[1644211226425,0.337192,42851.0,42850.0,0.04161731]
[1644211227672,0.426192,42851.0,42850.0,0.04161731]
[1644211228472,0.433192,42851.0,42850.0,0.04161731]
[1644211229771,0.426192,42851.0,42850.0,0.04161731]
[1644211230075,0.426192,42851.0,42848.0,0.00065687]
[1644211230076,0.326442,42850.0,42848.0,0.00065687]
[1644211230515,0.32022438,42850.0,42848.0,0.00065687]
[1644211230919,0.32022438,42850.0,42841.0,0.1]
[1644211231118,0.107,42851.0,42847.0,0.00065689]
[1644211231320,0.07187644,42849.0,42847.0,0.00065689]
[1644211231618,0.52235209,42848.0,42847.0,0.00065689]
[1644211231820,0.62235209,42848.0,42847.0,0.00065689]
[1644211232119,0.51613447,42848.0,42845.0,0.05]
[1644211232319,0.61613447,42848.0,42845.0,0.00065668]
[1644211232518,0.62313447,42848.0,42845.0,0.00065668]
[1644211232821,0.52313447,42848.0,42845.0,0.00065668]
[1644211233219,0.62313447,42848.0,42843.0,0.05]
[1644211233420,0.20289309,42848.0,42844.0,0.00065669]
[1644211233822,0.20289309,42848.0,42844.0,0.00087887]
[1644211234020,0.20289309,42848.0,42844.0,0.05087887]
[1644211234265,0.20289309,42848.0,42844.0,0.05065669]
[1644211234465,0.20989309,42848.0,42844.0,0.05]
[1644211234665,0.20989309,42848.0,42844.0,0.00065669]
[1644211234868,0.326459,42847.0,42844.0,0.00065669]
[1644211235468,0.326459,42847.0,42844.0,0.05065669]
[1644211235667,0.426459,42847.0,42843.0,0.00022218]
[1644211235967,0.426459,42847.0,42843.0,0.00065672]
[1644211236369,0.437459,42847.0,42843.0,0.00065672]
[1644211236766,0.35664168,42844.0,42843.0,0.00065672]
[1644211236967,0.68310068,42844.0,42842.0,0.00022218]
[1644211237166,0.35664168,42844.0,42843.0,0.0004894]
[1644211237367,0.111,42847.0,42843.0,0.0004894]
[1644211237568,0.19589309,42848.0,42843.0,0.00071158]
[1644211238029,0.19589309,42848.0,42843.0,0.00022218]
[1644211238225,0.28139163,42846.0,42843.0,0.00048972]
[1644211238428,0.28139163,42846.0,42845.0,0.05]
[1644211238626,0.28139163,42846.0,42843.0,0.00048972]
[1644211238825,0.28139163,42846.0,42843.0,0.0007119]
[1644211239226,0.28139163,42846.0,42843.0,0.00022218]
[1644211239427,0.28139163,42846.0,42842.0,0.05022218]
[1644211239627,0.28139163,42846.0,42845.0,0.05]
[1644211240426,0.28839163,42846.0,42845.0,0.05]
[1644211240629,0.27504241,42846.0,42845.0,0.05]
[1644211240827,0.27504241,42846.0,42843.0,0.00067188]
[1644211241682,0.26804241,42846.0,42842.0,0.00022218]
[1644211241871,0.26804241,42846.0,42842.0,0.00067189]
[1644211242071,0.26804241,42846.0,42842.0,0.00089407]
[1644211242471,0.27804241,42846.0,42844.0,0.05]
[1644211242872,0.27804241,42846.0,42843.0,0.00022218]
[1644211243073,0.27804241,42846.0,42843.0,0.00065605]
[1644211244173,0.27804241,42846.0,42842.0,0.00022218]
[1644211244472,0.28604241,42846.0,42842.0,0.00065605]
[1644211244673,0.28604241,42846.0,42842.0,0.00087823]
[1644211245075,0.018,42846.0,42842.0,0.00087823]
[1644211245275,0.018,42846.0,42842.0,0.00022218]
[1644211245514,0.018,42846.0,42842.0,0.00065606]
[1644211245715,0.26039562,42849.0,42842.0,0.00087824]
[1644211245917,0.3528538,42850.0,42846.0,0.05]
[1644211246115,0.326459,42849.0,42846.0,0.05]
[1644211246316,0.326459,42849.0,42843.0,0.05022218]
[1644211246516,0.326459,42849.0,42843.0,0.045]
[1644211246716,0.005,42848.0,42845.0,0.00065709]
[1644211246916,0.326459,42847.0,42845.0,0.00065709]
[1644211247716,0.326459,42847.0,42844.0,0.00022218]
[1644211247916,0.005,42848.0,42844.0,0.00065711]
[1644211248116,0.005,42848.0,42844.0,0.00087929]
[1644211248316,0.20719356,42847.0,42844.0,0.00087929]
[1644211248917,0.20719356,42847.0,42843.0,0.00022218]
[1644211249162,0.20719356,42847.0,42843.0,0.04565711]
[1644211249362,0.20719356,42847.0,42843.0,0.04587929]
[1644211250161,0.20719356,42847.0,42843.0,0.03022218]
[1644211250362,0.20719356,42847.0,42843.0,0.03087922]
[1644211250563,0.21419356,42847.0,42843.0,0.03087922]
[1644211251264,0.21419356,42847.0,42843.0,0.03022218]
[1644211251565,0.21419356,42847.0,42843.0,0.00087922]
[1644211251967,0.20719356,42847.0,42843.0,0.00065704]
[1644211252464,0.326459,42846.0,42842.0,0.00022218]
[1644211252664,0.22219356,42847.0,42843.0,0.00065704]
[1644211252919,0.02,42846.0,42843.0,0.00065704]
[1644211253727,0.02,42846.0,42837.0,0.08049236]
[1644211253728,0.8,42843.0,42828.0,0.22761039]
[1644211253937,0.8,42843.0,42821.0,1.1239]
[1644211253938,0.05,42831.0,42830.0,0.00262897]
[1644211254123,0.05,42831.0,42821.0,0.01]
[1644211254124,0.8,42830.0,42821.0,0.01]
[1644211254324,0.8,42830.0,42812.0,0.535]
[1644211254325,0.05,42822.0,42812.0,0.535]
[1644211254523,1.173159,42829.0,42812.0,0.535]
[1644211254524,0.05,42817.0,42812.0,0.535]
[1644211254722,0.27092913,42816.0,42812.0,0.535]
[1644211254925,0.22682526,42813.0,42812.0,0.535]
[1644211255126,0.22682526,42813.0,42812.0,0.52]
[1644211255425,0.28401639,42819.0,42807.0,0.042]
[1644211255624,0.326459,42818.0,42807.0,0.042]
[1644211255822,0.426459,42818.0,42807.0,0.042]
[1644211256226,0.64278194,42818.0,42809.0,0.26309925]
[1644211256426,0.326459,42812.0,42809.0,0.26309925]
[1644211256682,0.326459,42812.0,42807.0,0.042]
[1644211257276,1.87991868,42813.0,42807.0,0.042]
[1644211257677,0.326459,42812.0,42810.0,0.19051695]
[1644211257877,1.87991868,42813.0,42810.0,0.19051695]
[1644211258077,0.326459,42812.0,42810.0,0.19051695]
[1644211258277,0.326459,42812.0,42810.0,0.29051695]
[1644211259378,0.011,42813.0,42810.0,0.29051695]
[1644211259578,0.011,42813.0,42810.0,0.34891295]
[1644211259781,0.52,42820.0,42810.0,0.34891295]
[1644211259977,0.52,42820.0,42814.0,0.07759648]
[1644211260425,0.24992899,42819.0,42814.0,0.07759648]
[1644211260817,0.24992899,42819.0,42814.0,0.12759648]
[1644211261120,0.5,42826.0,42814.0,0.12759648]
[1644211261122,0.57004666,42829.0,42817.0,0.012827]
[1644211261321,0.0005846,42832.0,42820.0,0.05]
[1644211261522,0.0005846,42832.0,42821.0,0.059511]
[1644211261719,0.24540994,42827.0,42821.0,0.109511]
[1644211261918,0.24540994,42827.0,42821.0,0.0967]
[1644211262120,0.06372975,42826.0,42822.0,0.058378]
[1644211262318,0.06372975,42826.0,42821.0,0.0967]
[1644211262319,0.06372975,42826.0,42821.0,0.1467]
[1644211262918,0.19249495,42825.0,42821.0,0.1467]
[1644211263518,0.19249495,42825.0,42821.0,0.14740828]
[1644211264665,0.017,42825.0,42821.0,0.14838277]
[1644211264968,0.017,42825.0,42824.0,0.012808]
[1644211265267,0.017,42825.0,42824.0,0.059508]
[1644211265666,0.24822878,42825.0,42824.0,0.0467]
[1644211265864,0.25143116,42827.0,42824.0,0.0467]
[1644211266065,0.67143116,42827.0,42824.0,0.0467]
[1644211266264,0.42,42827.0,42824.0,0.0467]
[1644211266465,0.35824672,42826.0,42824.0,0.0467]
[1644211266670,0.08997599,42826.0,42824.0,0.0467]
[1644211266865,0.453,42827.0,42824.0,0.0467]
[1644211267069,0.033,42827.0,42824.0,0.0467]
[1644211267465,0.003,42827.0,42824.0,0.0467]
[1644211267664,0.0004997,42832.0,42825.0,0.012807]
[1644211267915,0.22309093,42828.0,42823.0,0.32042313]
[1644211268116,0.05,42828.0,42823.0,0.31974039]
[1644211268316,0.00049974,42832.0,42826.0,0.0006827]
[1644211268715,0.05,42828.0,42826.0,0.0006827]
[1644211268915,0.00049974,42832.0,42826.0,0.0006827]
[1644211269120,0.00049974,42832.0,42826.0,0.1641147]
[1644211269319,0.05,42841.0,42827.0,0.062801]
[1644211269517,0.05,42834.0,42831.0,0.058364]
[1644211269716,0.05,42834.0,42830.0,0.05]
[1644211269717,0.00058477,42832.0,42830.0,0.05]
[1644211269916,0.00058477,42832.0,42831.0,0.0467]
[1644211270116,0.51718477,42832.0,42831.0,0.04692054]
[1644211270516,0.5166,42832.0,42831.0,0.04892054]
[1644211271121,0.01581037,42832.0,42831.0,0.43755391]
[1644211271420,0.01581037,42832.0,42831.0,1.74410213]
[1644211271869,0.01581037,42832.0,42831.0,1.74210213]
[1644211272367,0.01581037,42832.0,42831.0,2.24210213]
[1644211272567,0.01581037,42832.0,42831.0,2.26810213]
[1644211273367,0.01581037,42832.0,42831.0,2.25310213]
[1644211273766,0.01581037,42832.0,42831.0,2.22710213]
[1644211274570,0.01581037,42832.0,42831.0,1.85207982]
[1644211275718,0.01581037,42832.0,42831.0,1.82607982]
[1644211276019,0.01581037,42832.0,42831.0,1.90697723]
[1644211276520,0.01581037,42832.0,42831.0,1.43197723]
[1644211278020,0.01581037,42832.0,42831.0,1.40697723]
[1644211278221,0.01581037,42832.0,42831.0,1.14774432]
[1644211278422,0.01581037,42832.0,42831.0,0.80911095]
[1644211278722,0.01581037,42832.0,42831.0,0.24061095]
[1644211278923,0.00938905,42841.0,42831.0,0.09061095]
[1644211279173,0.00938905,42841.0,42831.0,0.08731095]
[1644211279174,0.00058478,42834.0,42831.0,0.08731095]
[1644211280266,0.08188697,42843.0,42831.0,0.18731095]
[1644211280468,0.00017543,42836.0,42835.0,0.04061095]
[1644211280666,0.00017543,42836.0,42831.0,0.1537]
[1644211281269,0.25797049,42839.0,42831.0,0.107]
[1644211281469,0.25797049,42839.0,42835.0,0.04061095]
[1644211281668,0.00017543,42836.0,42835.0,0.04061095]
[1644211282271,0.00017543,42836.0,42831.0,0.09061095]
[1644211282474,0.013,42836.0,42835.0,0.04061095]
[1644211282917,0.01358331,42836.0,42832.0,0.05]
[1644211283722,0.01358331,42836.0,42835.0,0.04061095]
[1644211283723,0.00058331,42836.0,42835.0,0.04061095]
[1644211283919,0.25797049,42839.0,42835.0,0.04061095]
[1644211284120,0.00058332,42836.0,42835.0,0.04061095]
[1644211284518,0.00058332,42836.0,42835.0,0.05661095]
[1644211284718,0.00058332,42836.0,42835.0,0.016]
[1644211284918,0.26597049,42839.0,42835.0,0.016]
[1644211285123,0.326464,42838.0,42835.0,0.05661095]
[1644211285320,0.32704732,42838.0,42835.0,0.016]
[1644211285720,0.32704732,42838.0,42832.0,0.09061095]
[1644211285921,0.00058332,42838.0,42832.0,0.09061095]
[1644211286121,0.25797049,42839.0,42832.0,0.09061095]
[1644211286321,0.00058332,42837.0,42832.0,0.09061095]
[1644211286521,0.00058332,42837.0,42832.0,0.12161095]
[1644211286768,0.00058332,42837.0,42832.0,0.081]
[1644211287168,0.00058332,42837.0,42832.0,0.12161095]
[1644211287369,0.008,42838.0,42836.0,0.04061095]
[1644211287571,0.008,42838.0,42837.0,0.34057624]
[1644211287772,0.00938905,42844.0,42837.0,0.0467]
[1644211287969,0.00938905,42838.0,42837.0,0.0467]
[1644211288170,0.00938905,42845.0,42839.0,0.05]
[1644211288368,0.00938905,42845.0,42839.0,0.0967]
[1644211288770,0.00058332,42844.0,42839.0,0.0967]
[1644211289772,0.20205719,42841.0,42839.0,0.0967]
[1644211290170,0.00938905,42840.0,42839.0,0.0967]
[1644211290423,0.20205719,42841.0,42839.0,0.0967]
[1644211290619,0.21305719,42841.0,42839.0,0.1367]
[1644211291821,0.21305719,42841.0,42839.0,0.0967]
[1644211291822,0.20205719,42841.0,42839.0,0.0967]
[1644211292221,0.00938905,42840.0,42839.0,0.0967]
[1644211292620,0.00938905,42840.0,42839.0,0.1317]
[1644211292822,0.21205719,42841.0,42839.0,0.1317]
[1644211293024,0.00938905,42840.0,42839.0,0.1317]
[1644211293822,0.00058332,42842.0,42839.0,0.0967]
[1644211294566,0.008,42842.0,42839.0,0.1247]
[1644211294768,0.00938905,42840.0,42839.0,0.1247]
[1644211295867,0.00938905,42840.0,42839.0,0.0967]
[1644211296267,0.00058332,42842.0,42839.0,0.0967]
[1644211296667,0.005,42840.0,42839.0,0.1117]
[1644211297268,0.005,42840.0,42839.0,0.1617]
[1644211297470,0.005,42840.0,42839.0,0.2117]
[1644211297667,0.005,42840.0,42839.0,0.1617]
[1644211297918,0.00058332,42842.0,42839.0,0.1467]
[1644211298120,0.00938905,42843.0,42839.0,0.1467]
[1644211298318,0.00058332,42842.0,42839.0,0.1467]
[1644211298721,0.00058332,42842.0,42839.0,0.1547]
[1644211299322,0.005,42843.0,42839.0,0.1047]
[1644211299525,0.00938905,42840.0,42839.0,0.058]
[1644211299821,0.00938905,42842.0,42839.0,0.058]
[1644211300422,0.00058332,42843.0,42839.0,0.05]
[1644211300623,0.006,42842.0,42839.0,0.059]
[1644211301967,0.26487565,42842.0,42839.0,0.05]
[1644211302568,0.26987565,42842.0,42839.0,0.059]
[1644211302768,0.005,42842.0,42839.0,0.059]
[1644211302971,0.005,42842.0,42839.0,0.109]
[1644211303173,0.005,42842.0,42839.0,0.059]
[1644211303571,0.01438905,42842.0,42839.0,0.059]
[1644211303770,0.00938905,42842.0,42839.0,0.05]
[1644211304570,0.04838905,42842.0,42839.0,0.05]
[1644211305926,0.00938905,42842.0,42839.0,0.05]
[1644211306623,0.04638905,42842.0,42839.0,0.09061095]
[1644211306824,0.037,42842.0,42839.0,0.09061095]
[1644211307122,0.037,42842.0,42839.0,0.05]
[1644211307924,0.00938905,42843.0,42839.0,0.05]
[1644211308124,0.00956461,42843.0,42839.0,0.1]
[1644211308627,0.01456461,42843.0,42839.0,0.108]
[1644211309024,0.01438905,42843.0,42839.0,0.108]
[1644211309270,0.01456461,42843.0,42839.0,0.108]
[1644211309877,0.00956461,42843.0,42839.0,0.14061095]
[1644211310073,0.00938905,42843.0,42839.0,0.1]
[1644211310473,0.00931922,42842.0,42839.0,0.1]
[1644211310673,0.00931922,42842.0,42839.0,0.106]
[1644211311872,0.00931922,42842.0,42839.0,0.1]
[1644211312473,0.00931922,42842.0,42839.0,0.14068078]
[1644211312674,0.01431922,42842.0,42839.0,0.14968078]
[1644211313428,0.005,42842.0,42839.0,0.14968078]
[1644211313831,0.005,42842.0,42839.0,0.23541921]
[1644211314229,0.005,42842.0,42839.0,0.60125918]
[1644211314628,0.005,42842.0,42839.0,0.5725784]
[1644211314629,0.008,42842.0,42839.0,0.5725784]
[1644211314827,0.003,42842.0,42839.0,0.5635784]
[1644211315027,0.003,42842.0,42839.0,0.112]
[1644211315229,0.003,42842.0,42839.0,0.062]
[1644211315433,0.00058332,42843.0,42840.0,0.85]
[1644211315631,0.00058332,42843.0,42842.0,0.04068078]
[1644211315833,0.00058332,42843.0,42842.0,0.41856938]
[1644211316131,0.0001,42850.0,42842.0,0.46856938]
[1644211316334,0.0001,42850.0,42849.0,0.04068078]
[1644211316532,0.0001,42850.0,42849.0,0.43651148]
[1644211316774,0.0021,42850.0,42849.0,0.48651148]
[1644211317972,0.0001,42850.0,42849.0,0.22094889]
[1644211318572,0.0281,42850.0,42849.0,0.23194889]
[1644211318774,0.0281,42850.0,42849.0,0.14838078]
[1644211319372,0.0281,42850.0,42849.0,0.64838078]
[1644211319874,0.0001,42850.0,42849.0,0.63738078]
[1644211320735,0.0021,42850.0,42849.0,0.65238078]
[1644211321136,0.0021,42850.0,42849.0,0.70238078]
[1644211321737,0.0021,42850.0,42849.0,0.65238078]
[1644211321941,0.0001,42850.0,42849.0,0.5]
[1644211322146,0.2577873,42842.0,42839.0,0.05]
[1644211322340,0.00931922,42842.0,42839.0,0.05]
[1644211322741,0.03531922,42842.0,42839.0,0.05]
[1644211323042,0.026,42842.0,42839.0,0.05]
[1644211323440,0.00931922,42841.0,42839.0,0.05]
[1644211324778,0.02931922,42841.0,42839.0,0.051]
[1644211325179,0.326464,42840.0,42839.0,0.051]
[1644211325778,0.56980272,42840.0,42839.0,0.051]
[1644211325982,0.56980272,42840.0,42839.0,0.05]
[1644211326182,0.87525093,42840.0,42839.0,0.05]
[1644211326382,0.97525093,42840.0,42839.0,0.05]
[1644211326783,0.99325093,42840.0,42839.0,0.05]
[1644211327181,0.99325093,42840.0,42839.0,0.0035]
[1644211327580,0.68780272,42840.0,42839.0,0.0035]
[1644211328023,0.66980272,42840.0,42839.0,0.0035]
[1644211328624,0.36133872,42840.0,42839.0,0.0035]
[1644211328824,0.58780272,42840.0,42839.0,0.0035]
[1644211329024,0.68780272,42840.0,42839.0,0.0035]
[1644211329427,0.36133872,42840.0,42839.0,0.0035]
[1644211329825,0.34333872,42840.0,42839.0,0.0035]
[1644211330224,0.24333872,42840.0,42839.0,0.0035]
[1644211330425,0.34333872,42840.0,42839.0,0.0035]
[1644211330626,0.36233872,42840.0,42839.0,0.0035]
[1644211330825,0.68880272,42840.0,42839.0,0.0035]
[1644211331024,0.22535592,42832.0,42831.0,0.00022005]
[1644211331224,0.22535592,42832.0,42830.0,0.00070877]
[1644211331680,0.22535592,42832.0,42828.0,0.05]
[1644211331681,0.22535592,42832.0,42829.0,0.00022005]
[1644211331876,0.23467514,42832.0,42828.0,0.05022005]
[1644211332078,0.23467514,42832.0,42828.0,0.05]
[1644211332677,0.24267514,42832.0,42828.0,0.077]
[1644211332878,0.00931922,42829.0,42828.0,0.077]
[1644211333083,0.00931922,42829.0,42828.0,0.07770815]
[1644211333280,0.8,42828.0,42824.0,0.00022005]
[1644211333480,0.00931922,42825.0,42823.0,0.00088724]
[1644211333679,0.326464,42824.0,42823.0,0.00088724]
[1644211333879,0.85946049,42824.0,42823.0,0.00088724]
[1644211334079,1.14696603,42824.0,42823.0,0.00088724]
[1644211334877,1.26496603,42824.0,42823.0,0.00088724]
[1644211336028,1.24696603,42824.0,42823.0,0.00088724]
[1644211336631,1.16261211,42824.0,42806.0,0.4438]
[1644211336842,1.16261211,42824.0,42805.0,0.0033]
[1644211336843,0.00931922,42808.0,42805.0,0.0033]
[1644211337031,0.05601922,42808.0,42798.0,0.0021]
[1644211337234,0.8,42804.0,42796.0,0.0052]
[1644211337429,1.7186454,42803.0,42795.0,0.00025]
[1644211337627,0.00931922,42797.0,42795.0,0.00025]
[1644211337827,0.40742101,42797.0,42795.0,0.00025]
[1644211338028,0.31092277,42796.0,42795.0,0.00025]
[1644211338228,0.63738677,42796.0,42795.0,0.00025]
[1644211338429,0.63738677,42796.0,42791.0,0.01]
[1644211338430,0.63238677,42796.0,42791.0,0.00825]
[1644211338628,0.23241539,42794.0,42791.0,0.00825]
[1644211338933,0.01,42796.0,42794.0,0.32481174]
[1644211339181,0.01,42796.0,42795.0,0.04068078]
[1644211339379,0.01,42796.0,42794.0,0.32481174]
[1644211339878,0.26356261,42795.0,42794.0,0.32481174]
[1644211340280,0.05601922,42807.0,42794.0,0.42481174]
[1644211340479,0.05601922,42807.0,42794.0,0.14068078]
[1644211340676,0.05601922,42807.0,42795.0,0.29951269]
[1644211341077,0.00931922,42807.0,42795.0,0.28370491]
[1644211341276,0.26751779,42800.0,42794.0,0.14068078]
[1644211341482,0.00931922,42807.0,42795.0,0.59024442]
[1644211341677,0.1,42806.0,42799.0,0.04138889]
[1644211341878,0.00931922,42807.0,42799.0,0.04138889]
[1644211342077,0.00931922,42807.0,42799.0,0.00070811]
[1644211342275,0.00931922,42807.0,42799.0,0.04138889]
[1644211342480,0.26051315,42802.0,42799.0,0.04138889]
[1644211342677,0.26051315,42802.0,42799.0,0.04068078]
[1644211342932,0.01431922,42807.0,42801.0,0.00070809]
[1644211343131,0.01431922,42807.0,42803.0,0.04068078]
[1644211343731,0.01431922,42807.0,42800.0,0.28969381]
[1644211343732,0.20924735,42806.0,42800.0,0.28969381]
[1644211343931,0.20924735,42806.0,42803.0,0.04138884]
[1644211344132,0.20924735,42806.0,42803.0,0.00070806]
[1644211344331,0.20924735,42806.0,42803.0,0.04138884]
[1644211344731,0.22124735,42806.0,42803.0,0.04138884]
[1644211344930,0.22124735,42806.0,42803.0,0.04068078]
[1644211346031,0.20924735,42806.0,42803.0,0.04068078]
[1644211346697,0.23324735,42806.0,42803.0,0.04068078]
[1644211347092,0.326464,42805.0,42803.0,0.04068078]
[1644211347395,0.024,42806.0,42804.0,0.0467]
[1644211347594,0.024,42806.0,42804.0,0.34389626]
[1644211347799,0.024,42806.0,42805.0,0.30246951]
[1644211347994,0.08926161,42817.0,42805.0,0.34916951]
[1644211348192,0.08926161,42817.0,42812.0,0.05]
[1644211348393,0.23056166,42816.0,42813.0,0.0467]
[1644211348794,0.23056166,42816.0,42814.0,0.04068078]
[1644211348993,0.23056166,42816.0,42815.0,0.0467]
[1644211350429,0.25148203,42819.0,42815.0,0.0467]
[1644211350926,0.028,42816.0,42815.0,0.0467]
[1644211351529,0.23119329,42816.0,42814.0,0.00067331]
[1644211351725,0.61926802,42815.0,42814.0,0.00067331]
[1644211351926,0.71926802,42815.0,42814.0,0.00067331]
[1644211352126,0.55,42814.0,42805.0,0.04068078]
[1644211352326,0.326464,42811.0,42807.0,0.05]
[1644211352527,0.23043358,42809.0,42807.0,0.05]
[1644211352726,0.008,42814.0,42807.0,0.05]
[1644211352930,0.008,42814.0,42807.0,0.05021753]
[1644211353327,0.00931922,42811.0,42807.0,0.05021753]
[1644211353527,0.00931922,42811.0,42808.0,0.00067339]
[1644211353728,0.23106605,42810.0,42808.0,0.00067339]
[1644211353927,0.23106605,42810.0,42808.0,0.00089092]
[1644211354182,0.23106605,42810.0,42808.0,0.00067339]
[1644211354674,0.23106605,42810.0,42807.0,0.05021753]
[1644211354875,0.24206605,42810.0,42807.0,0.05067844]
[1644211355876,0.326464,42809.0,42807.0,0.05]
[1644211356077,0.011,42810.0,42808.0,0.04068078]
[1644211356577,0.00931922,42811.0,42808.0,0.04068078]
[1644211356875,0.006,42810.0,42808.0,0.04089831]
[1644211357077,0.006,42810.0,42808.0,0.04068078]
[1644211357276,0.006,42810.0,42807.0,0.09759596]
[1644211357578,0.326464,42809.0,42807.0,0.09737843]
[1644211357777,0.426464,42809.0,42807.0,0.05067843]
[1644211358228,0.326464,42808.0,42807.0,0.05]
[1644211358430,0.326464,42809.0,42807.0,0.05]
[1644211358629,0.69902191,42808.0,42807.0,0.05]
[1644211358829,0.72903989,42808.0,42807.0,0.05]
[1644211359029,0.447464,42808.0,42807.0,0.05]
[1644211359229,0.347464,42808.0,42807.0,0.05]
[1644211359432,0.74180039,42808.0,42807.0,0.05]
[1644211359631,0.74180039,42808.0,42797.0,0.00021753]
[1644211359831,0.20502874,42805.0,42796.0,0.19068078]
[1644211360031,0.21434796,42805.0,42796.0,0.19068078]
[1644211360331,0.23735399,42804.0,42796.0,0.19068078]
[1644211360535,0.23735399,42804.0,42799.0,0.04068078]
[1644211360832,0.005,42805.0,42799.0,0.04068078]
[1644211361032,0.005,42805.0,42799.0,0.04089831]
[1644211361334,0.08678636,42803.0,42799.0,0.00021753]
[1644211361693,0.08678636,42803.0,42798.0,0.00089475]
[1644211361694,0.326464,42801.0,42798.0,0.00089475]
[1644211361880,0.426464,42801.0,42797.0,0.00021753]
[1644211362079,0.426464,42801.0,42799.0,0.00069773]
[1644211362279,0.63981952,42800.0,42799.0,0.00069773]
[1644211362479,0.8873848,42800.0,42799.0,0.00069773]
[1644211362680,0.9873848,42800.0,42799.0,0.00069773]
[1644211362880,1.0043848,42800.0,42799.0,0.00069773]
[1644211363084,0.9043848,42800.0,42797.0,0.00021753]
[1644211363282,0.326464,42799.0,42797.0,0.00069775]
[1644211363483,0.326464,42799.0,42797.0,0.00091528]
[1644211363682,0.326464,42799.0,42797.0,0.00069775]
[1644211363983,0.08678636,42803.0,42797.0,0.00069775]
[1644211363984,0.08678636,42803.0,42797.0,0.04137853]
[1644211364183,0.326464,42802.0,42801.0,0.04068078]
[1644211364383,0.00931922,42803.0,42801.0,0.04068078]
[1644211364781,0.007,42802.0,42801.0,0.04068078]
[1644211364981,0.007,42802.0,42799.0,0.00021753]
[1644211365183,0.007,42802.0,42798.0,0.30295574]
[1644211365423,0.007,42802.0,42798.0,0.34363652]
[1644211365624,0.007,42802.0,42798.0,0.34409331]
[1644211365821,0.24957205,42799.0,42798.0,0.0413551]
[1644211366122,0.60660791,42799.0,42798.0,0.00067432]
[1644211366520,0.60660791,42799.0,42797.0,0.00021757]
[1644211366723,0.00931922,42802.0,42796.0,0.05]
[1644211366724,0.26962129,42798.0,42796.0,0.05]
[1644211366921,0.26962129,42798.0,42796.0,0.05067434]
[1644211367223,0.326464,42797.0,42796.0,0.05067434]
[1644211367422,0.74268571,42797.0,42796.0,0.05067434]
[1644211367821,0.71366016,42797.0,42796.0,0.05]
[1644211368226,0.426464,42797.0,42796.0,0.05]
[1644211368423,0.326464,42797.0,42796.0,0.05]
[1644211368624,0.21297148,42801.0,42796.0,0.09068078]
[1644211368822,0.009,42797.0,42796.0,0.05]
[1644211369024,0.009,42797.0,42796.0,0.05021483]
[1644211369280,0.009,42797.0,42796.0,0.05067775]
[1644211370079,0.08548274,42798.0,42796.0,0.05067775]
[1644211370280,0.26964773,42797.0,42796.0,0.05]
[1644211370480,0.326464,42797.0,42796.0,0.05]
[1644211370679,0.2222907,42801.0,42796.0,0.05]
[1644211370883,0.017,42797.0,42796.0,0.05]
[1644211371080,0.343464,42797.0,42796.0,0.05]
[1644211371481,0.343464,42797.0,42796.0,0.09068078]
[1644211371880,0.343464,42797.0,42796.0,0.1]
[1644211372081,0.60568496,42797.0,42796.0,0.05]
[1644211372282,0.60892367,42797.0,42796.0,0.05]
[1644211372680,0.61972267,42797.0,42796.0,0.05]
[1644211372927,0.63672267,42797.0,42796.0,0.05]
[1644211373127,0.343464,42797.0,42796.0,0.09068078]
[1644211373328,0.343464,42797.0,42796.0,0.05]
[1644211374228,0.326464,42797.0,42796.0,0.05]
[1644211374931,0.344464,42797.0,42796.0,0.09068078]
[1644211375730,0.344464,42797.0,42796.0,0.05]
[1644211376132,0.2222907,42801.0,42796.0,0.05]
[1644211376332,0.2222907,42801.0,42796.0,0.05021483]
[1644211376529,0.2222907,42801.0,42796.0,0.05]
[1644211376987,0.2302907,42801.0,42796.0,0.05]
[1644211377184,0.326464,42800.0,42796.0,0.05]
[1644211377590,0.06464423,42798.0,42796.0,0.05065026]
[1644211377787,0.326464,42797.0,42796.0,0.05065026]
[1644211377988,0.326464,42797.0,42796.0,0.03195026]
[1644211378588,0.326464,42797.0,42796.0,0.07198078]
[1644211378988,0.348464,42797.0,42796.0,0.07198078]
[1644211379589,0.348464,42797.0,42796.0,0.0313]
[1644211380190,0.326464,42797.0,42796.0,0.0313]
[1644211380829,0.352464,42797.0,42796.0,0.0263]